bitfinex/quotes_SOLUSD_20250306
["timestamp","ask_amount","ask_price","bid_price","bid_amount"]
[1741229353490,80.8,148.46,148.37,201.62]
[1741229353875,80.8,148.46,148.38,18.933972]
[1741229354399,80.8,148.46,148.38,18.64964886]
[1741229354701,80.8,148.46,148.39,0.28432314]
[1741229357299,80.8,148.46,148.39,0.14216157]
[1741229357509,80.8,148.45,148.37,120.32]
[1741229357704,0.42648471,148.44,148.35,81.3]
[1741229358006,6.1347,148.42,148.35,312.0]
[1741229358183,80.8,148.41,148.32,81.3]
[1741229358388,80.8,148.4,148.3,87.8]
[1741229358690,80.8,148.39,148.31,18.79181043]
[1741229358892,80.8,148.45,148.36,0.14216157]
[1741229359202,80.8,148.45,148.39,0.14216157]
[1741229359503,80.8,148.44,148.34,81.3]
[1741229359701,80.8,148.43,148.34,81.3]
[1741229360101,80.8,148.43,148.35,0.14216157]
[1741229362697,80.8,148.42,148.33,0.14216157]
[1741229364104,6.0736,148.4,148.31,18.67964886]
[1741229364314,82.3436,148.39,148.31,0.03]
[1741229364513,80.8,148.38,148.31,0.03]
[1741229364721,80.8,148.38,148.31,312.03]
[1741229364937,80.8,148.37,148.31,312.03]
[1741229365089,81.22648471,148.36,148.31,0.03]
[1741229365921,20.0,148.33,148.31,0.03]
[1741229366617,7.5498,148.32,148.31,0.03]
[1741229367601,80.8,148.31,148.23,0.03]
[1741229367797,80.8,148.3,148.23,0.03]
[1741229368116,80.8,148.3,148.24,312.0]
[1741229372126,7.5498,148.32,148.25,18.79181043]
[1741229372624,7.5498,148.32,148.25,0.14216157]
[1741229373622,81.22648471,148.31,148.23,0.03]
[1741229373826,0.42648471,148.29,148.23,0.03]
[1741229375214,80.8,148.31,148.23,0.03]
[1741229375417,80.8,148.3,148.23,0.17216157]
[1741229376430,80.8,148.3,148.23,6.91836157]
[1741229376601,80.8,148.3,148.25,0.14216157]
[1741229378736,80.8,148.3,148.25,312.14216157]
[1741229379028,1.629,148.37,148.29,20.14216157]
[1741229379229,1.629,148.37,148.31,0.14216157]
[1741229379529,20.0,148.35,148.29,81.3]
[1741229380436,1.629,148.37,148.3,18.79181043]
[1741229380618,1.629,148.37,148.3,45.72164232]
[1741229381229,80.8,148.38,148.33,0.14216157]
[1741229382218,80.8,148.38,148.33,312.0]
[1741229382535,0.033,148.37,148.33,312.0]
[1741229383332,0.033,148.37,148.31,81.3]
[1741229384939,0.033,148.37,148.3,0.56864628]
[1741229385125,0.033,148.37,148.32,0.14216157]
[1741229386342,0.033,148.37,148.32,312.14216157]
[1741229387542,0.033,148.37,148.34,0.14216157]
[1741229388335,0.033,148.37,148.33,81.3]
[1741229389632,0.033,148.37,148.34,18.79181043]
[1741229390031,0.033,148.37,148.34,0.14216157]
[1741229390238,0.033,148.37,148.32,0.14216157]
[1741229390630,0.033,148.37,148.32,312.14216157]
[1741229390820,0.033,148.37,148.33,18.79181043]
[1741229391024,0.033,148.37,148.33,18.64964886]
[1741229391224,0.033,148.37,148.34,0.14216157]
[1741229391739,0.033,148.37,148.34,0.28432314]
[1741229391941,0.033,148.37,148.36,18.64964886]
[1741229392542,0.033,148.37,148.36,0.28432314]
[1741229394053,0.033,148.37,148.36,7.02462314]
[1741229394427,0.033,148.37,148.36,319.02462314]
[1741229394649,0.033,148.37,148.36,330.933972]
[1741229394940,0.033,148.37,148.36,357.86380389]
[1741229395125,0.033,148.37,148.36,330.933972]
[1741229395532,0.033,148.37,148.36,331.21829514]
[1741229395941,0.033,148.37,148.36,19.21829514]
[1741229396250,0.033,148.37,148.36,100.51829514]
[1741229396549,0.033,148.37,148.36,127.44812703]
[1741229398029,0.033,148.37,148.36,134.18842703]
[1741229398252,0.033,148.37,148.36,127.44812703]
[1741229398953,0.033,148.37,148.36,439.44812703]
[1741229400664,0.033,148.37,148.36,446.18842703]
[1741229401060,80.8,148.48,148.4,20.56864628]
[1741229401275,80.8,148.48,148.42,0.28432314]
[1741229401868,80.8,148.48,148.42,0.14216157]
[1741229402061,8.2607,148.49,148.42,81.58432314]
[1741229402062,1.6627,148.49,148.42,81.58432314]
[1741229402278,1.7367133,148.5,148.45,18.933972]
[1741229402579,1.7367133,148.5,148.45,100.233972]
[1741229402774,1.7367133,148.5,148.45,100.51829514]
[1741229402977,1.7367133,148.5,148.45,268.68432703]
[1741229404180,1.7367133,148.5,148.45,580.68432703]
[1741229404877,1.7367133,148.5,148.45,582.28012703]
[1741229405580,1.7367133,148.5,148.45,588.81582703]
[1741229407563,1.7367133,148.5,148.45,592.20517709]
[1741229407763,1.7367133,148.5,148.45,581.93746546]
[1741229407977,1.7367133,148.5,148.45,579.85948075]
[1741229408164,80.8,148.49,148.42,81.3]
[1741229408703,3.2520133,148.5,148.44,19.21829514]
[1741229408868,1.7367133,148.5,148.45,45.57948075]
[1741229409062,1.7367133,148.5,148.45,126.87948075]
[1741229409263,1.7367133,148.5,148.45,127.30596546]
[1741229409458,1.7367133,148.5,148.45,128.86214293]
[1741229409690,1.7367133,148.5,148.49,20.56864628]
[1741229409883,1.7367133,148.5,148.49,147.44812703]
[1741229410491,1.7367133,148.5,148.49,154.18252703]
[1741229411284,1.7367133,148.5,148.49,466.18252703]
[1741229412079,1.7367133,148.5,148.49,600.68252703]
[1741229412889,1.5836,148.62,148.57,0.14216157]
[1741229413184,7.5862,148.69,148.59,0.28432314]
[1741229413375,80.8,148.68,148.59,81.58432314]
[1741229413766,7.5862,148.69,148.62,0.28432314]
[1741229413965,7.5862,148.69,148.64,0.14216157]
[1741229414479,7.5862,148.69,148.62,81.3]
[1741229414679,7.784533,148.69,148.62,81.3]
[1741229415996,7.784533,148.69,148.62,0.14216157]
[1741229416201,7.784533,148.69,148.62,312.14216157]
[1741229416406,80.8,148.68,148.62,312.0]
[1741229416595,80.8,148.68,148.6,0.14216157]
[1741229416791,80.8,148.67,148.6,0.14216157]
[1741229417012,1.6187,148.65,148.53,215.8]
[1741229417303,87.71688471,148.64,148.53,81.3]
[1741229417802,87.71688471,148.64,148.55,0.14216157]
[1741229418005,87.71688471,148.64,148.53,81.3]
[1741229418391,0.42648471,148.62,148.52,18.64964886]
[1741229418611,80.8,148.61,148.53,0.28432314]
[1741229419605,80.8,148.61,148.51,26.92983189]
[1741229419810,80.8,148.61,148.5,87.78]
[1741229420323,80.8,148.63,148.54,18.64964886]
[1741229421090,80.8,148.63,148.55,0.28432314]
[1741229421297,80.8,148.63,148.57,0.14216157]
[1741229422714,80.8,148.63,148.57,312.14216157]
[1741229423091,80.8,148.63,148.57,0.14216157]
[1741229423422,80.8,148.63,148.55,81.3]
[1741229425692,80.8,148.63,148.56,0.14216157]
[1741229426106,80.8,148.63,148.56,312.14216157]
[1741229426309,1.6187,148.65,148.58,0.14216157]
[1741229426493,1.6187,148.65,148.6,0.14216157]
[1741229426690,1.6187,148.65,148.62,0.14216157]
[1741229426905,86.9342,148.68,148.62,0.14216157]
[1741229427817,1.887733,148.69,148.64,0.14216157]
[1741229427994,1.887733,148.69,148.64,81.44216157]
[1741229428605,1.887733,148.69,148.63,27.07199346]
[1741229428912,1.887733,148.69,148.65,0.14216157]
[1741229429507,1.887733,148.69,148.65,312.14216157]
[1741229430020,0.231333,148.69,148.65,312.14216157]
[1741229430711,0.231333,148.69,148.65,312.0]
[1741229430909,0.231333,148.69,148.62,81.3]
[1741229431114,1.6152,148.67,148.6,81.3]
[1741229431310,80.8,148.66,148.57,215.8]
[1741229431521,80.8,148.66,148.57,81.3]
[1741229431726,87.4318,148.65,148.55,87.78]
[1741229431899,87.4318,148.65,148.55,114.70983189]
[1741229432101,87.4318,148.65,148.56,18.933972]
[1741229432514,87.4318,148.65,148.55,81.3]
[1741229432721,80.8,148.64,148.55,81.3]
[1741229433416,80.8,148.64,148.58,0.14216157]
[1741229433828,80.8,148.64,148.58,312.14216157]
[1741229434015,80.8,148.64,148.57,0.14216157]
[1741229434633,80.8,148.63,148.55,81.3]
[1741229434920,1.6528,148.62,148.55,81.3]
[1741229435302,80.8,148.61,148.5,81.33]
[1741229435503,80.8,148.6,148.5,81.33]
[1741229436019,82.4528,148.62,148.51,19.21829514]
[1741229436213,1.6528,148.62,148.54,0.28432314]
[1741229436417,1.6528,148.62,148.57,0.14216157]
[1741229436809,1.6528,148.62,148.57,312.14216157]
[1741229438105,6.6318,148.65,148.59,0.14216157]
[1741229438310,6.6318,148.65,148.59,81.44216157]
[1741229439232,6.6318,148.65,148.59,88.17186157]
[1741229439401,6.6318,148.65,148.61,0.14216157]
[1741229439608,1.5827,148.66,148.61,0.14216157]
[1741229441120,1.5827,148.66,148.61,312.14216157]
[1741229441432,6.779633,148.69,148.63,0.14216157]
[1741229441634,0.198333,148.69,148.65,0.14216157]
[1741229441822,0.198333,148.69,148.67,0.14216157]
[1741229442027,0.198333,148.69,148.67,0.56864628]
[1741229442231,0.198333,148.69,148.67,27.49847817]
[1741229442736,0.198333,148.69,148.65,27.07199346]
[1741229442936,0.198333,148.69,148.65,0.28432314]
[1741229443124,0.198333,148.69,148.65,0.14216157]
[1741229443517,0.198333,148.69,148.61,94.602]
[1741229443713,0.198333,148.69,148.61,222.3731]
[1741229443918,6.812233,148.69,148.61,81.3]
[1741229444113,1.6445,148.67,148.58,81.3]
[1741229444318,80.8,148.66,148.58,81.3]
[1741229444719,80.8,148.66,148.58,393.3]
[1741229445032,80.998333,148.66,148.58,393.3]
[1741229446115,80.998333,148.66,148.59,0.14216157]
[1741229446518,80.998333,148.66,148.59,18.79181043]
[1741229446837,0.198333,148.66,148.65,18.64964886]
[1741229447032,0.198333,148.66,148.65,261.94812703]
[1741229447829,0.033,148.69,148.68,0.56864628]
[1741229448028,0.033,148.69,148.68,263.35959874]
[1741229448224,0.033,148.69,148.68,261.94812703]
[1741229448927,7.632,148.82,148.71,20.0]
[1741229449124,7.632,148.82,148.74,27.21415503]
[1741229449327,1.5984,148.82,148.76,18.933972]
[1741229449532,1.5984,148.82,148.76,0.14216157]
[1741229449736,1.5984,148.82,148.76,312.0]
[1741229449931,21.5984,148.82,148.71,222.5]
[1741229450142,102.3984,148.82,148.72,0.14216157]
[1741229451042,21.5984,148.82,148.72,18.933972]
[1741229451244,1.5984,148.82,148.76,0.14216157]
[1741229451721,1.5984,148.82,148.74,0.14216157]
[1741229452331,80.8,148.81,148.67,215.8]
[1741229452535,6.5526,148.79,148.67,215.8]
[1741229452738,6.5526,148.79,148.68,26.92983189]
[1741229452930,6.5526,148.79,148.69,0.14216157]
[1741229453128,87.3526,148.79,148.7,26.92983189]
[1741229453327,6.5526,148.79,148.7,26.92983189]
[1741229453534,6.5526,148.79,148.69,46.14812703]
[1741229453853,6.5526,148.79,148.7,26.92983189]
[1741229454036,6.5526,148.79,148.71,27.21415503]
[1741229454352,1.5984,148.82,148.74,26.92983189]
[1741229454950,1.5984,148.82,148.73,180.36380389]
[1741229455136,1.5984,148.82,148.73,153.433972]
[1741229457040,1.5984,148.82,148.73,465.433972]
[1741229457446,1.7300467,148.8,148.77,0.28432314]
[1741229457663,1.7300467,148.8,148.77,127.16380389]
[1741229458241,1.6970467,148.8,148.77,100.233972]
[1741229458532,1.6970467,148.8,148.77,127.16380389]
[1741229458770,1.6970467,148.8,148.79,45.86380389]
[1741229459129,1.6970467,148.8,148.79,134.16892703]
[1741229459461,0.6970467,148.8,148.79,134.16892703]
[1741229460448,0.6970467,148.8,148.79,135.57959707]
[1741229460647,0.6970467,148.8,148.79,270.07959707]
[1741229460848,0.6970467,148.8,148.79,268.66892703]
[1741229461162,0.5549467,148.8,148.79,268.66892703]
[1741229461350,0.5549467,148.8,148.79,580.66892703]
[1741229461965,7.9147,148.91,148.86,0.28432314]
[1741229462263,7.9147,148.91,148.86,0.14216157]
[1741229462461,7.9147,148.91,148.83,46.92983189]
[1741229462668,7.9147,148.91,148.84,0.14216157]
[1741229463037,80.8,148.9,148.82,81.3]
[1741229463233,80.8,148.9,148.79,108.22983189]
[1741229463457,80.8,148.89,148.79,81.3]
[1741229464257,80.8,148.89,148.8,19.21829514]
[1741229464443,80.8,148.89,148.82,18.933972]
[1741229464642,7.9147,148.91,148.82,81.44216157]
[1741229464838,80.8,148.9,148.8,0.14216157]
[1741229465261,80.8,148.9,148.8,18.933972]
[1741229465449,80.8,148.9,148.8,45.86380389]
[1741229465644,80.8,148.9,148.8,357.86380389]
[1741229465846,80.8,148.9,148.8,330.933972]
[1741229466068,80.8,148.9,148.8,312.14216157]
[1741229467040,80.8,148.9,148.8,0.14216157]
[1741229467241,80.8,148.9,148.79,81.3]
[1741229467450,80.8,148.89,148.79,81.3]
[1741229467665,80.8,148.88,148.79,81.3]
[1741229468049,1.6503,148.87,148.79,81.3]
[1741229468255,6.55832314,148.85,148.73,81.3]
[1741229468558,80.8,148.84,148.75,27.07199346]
[1741229468863,80.8,148.84,148.75,0.14216157]
[1741229469068,80.8,148.84,148.73,81.3]
[1741229469366,80.8,148.84,148.74,0.14216157]
[1741229469749,1.594,148.83,148.73,81.3]
[1741229469957,1.594,148.83,148.74,18.64964886]
[1741229470156,1.594,148.83,148.75,0.14216157]
[1741229470352,1.594,148.83,148.75,243.29847817]
[1741229470559,1.594,148.83,148.77,27.07199346]
[1741229470772,1.594,148.83,148.78,0.14216157]
[1741229471471,1.594,148.83,148.77,108.22983189]
[1741229471652,1.594,148.83,148.78,0.14216157]
[1741229471981,0.033,148.89,148.87,20.0]
[1741229472281,0.033,148.89,148.88,45.86380389]
[1741229472641,0.033,148.89,148.85,0.14216157]
[1741229473559,0.033,148.89,148.88,0.14216157]
[1741229474076,0.033,148.89,148.86,0.28432314]
[1741229474443,0.033,148.89,148.88,72.32782703]
[1741229475179,7.7115,149.02,148.93,0.56864628]
[1741229475383,7.7115,149.02,148.93,0.28432314]
[1741229475575,7.7115,149.02,148.93,27.21415503]
[1741229475894,7.7115,149.02,148.94,26.92983189]
[1741229476179,7.7115,149.02,148.95,18.933972]
[1741229476357,7.7115,149.02,148.95,0.14216157]
[1741229476551,7.7115,149.02,148.95,0.28432314]
[1741229476757,7.7115,149.02,148.93,0.14216157]
[1741229476958,20.0,148.99,148.89,1.40939021]
[1741229477158,20.0,148.97,148.86,81.3]
[1741229477457,80.8,148.96,148.85,134.5]
[1741229477660,80.8,148.98,148.88,43.36121086]
[1741229477877,10.18219668,149.05,148.91,43.36121086]
[1741229477878,80.8,149.01,148.91,43.36121086]
[1741229478049,80.8,149.04,148.92,0.28432314]
[1741229478477,6.84,149.05,148.94,0.14216157]
[1741229478683,80.8,149.04,148.94,0.14216157]
[1741229478965,80.8,149.04,148.91,43.36121086]
[1741229479162,80.8,149.01,148.91,0.14216157]
[1741229479449,20.0,148.97,148.86,259.16121086]
[1741229479655,80.8,148.99,148.86,215.8]
[1741229479854,20.0,148.95,148.86,215.8]
[1741229480073,20.0,148.94,148.83,251.54121086]
[1741229480372,27.79,148.93,148.84,18.933972]
[1741229480874,27.79,148.93,148.83,386.04121086]
[1741229481071,27.79,148.93,148.84,18.79181043]
[1741229481270,27.79,148.93,148.84,18.64964886]
[1741229481576,27.79,148.93,148.85,0.14216157]
[1741229482157,7.79,148.93,148.86,18.64964886]
[1741229482358,7.79,148.93,148.86,81.3]
[1741229482576,7.79,148.93,148.87,0.14216157]
[1741229483452,7.79,148.93,148.86,81.3]
[1741229483667,27.79,148.93,148.86,81.3]
[1741229483955,27.79,148.93,148.86,81.33]
[1741229484155,7.79,148.93,148.86,0.03]
[1741229484353,7.79,148.93,148.86,0.17216157]
[1741229484551,7.79,148.93,148.86,0.03]
[1741229487167,7.79,148.93,148.86,0.17216157]
[1741229487364,7.79,148.93,148.86,81.47216157]
[1741229488264,7.79,148.93,148.87,0.14216157]
[1741229488671,7.79,148.93,148.86,81.33]
[1741229489272,81.08432314,148.92,148.86,0.03]
[1741229490791,81.08432314,148.92,148.79,81.3]
[1741229490991,80.8,148.91,148.79,81.3]
[1741229491202,80.8,148.91,148.8,0.14216157]
[1741229491602,80.8,148.91,148.77,134.5]
[1741229491603,20.0,148.87,148.77,215.8]
[1741229491886,20.0,148.87,148.78,43.36121086]
[1741229492207,20.0,148.87,148.77,259.16121086]
[1741229492505,20.0,148.86,148.78,0.14216157]
[1741229493286,20.0,148.82,148.72,222.4337]
[1741229493495,80.8,148.81,148.72,399.9337]
[1741229493703,80.8,148.81,148.72,393.3]
[1741229493906,80.8,148.81,148.73,0.14216157]
[1741229494106,8.0849,148.85,148.73,236.00323005]
[1741229494407,8.0849,148.85,148.77,0.14216157]
[1741229494713,8.0849,148.85,148.78,0.14216157]
[1741229495511,8.0849,148.85,148.77,81.3]
[1741229496286,80.8,148.88,148.78,0.28432314]
[1741229496483,80.8,148.88,148.8,0.28432314]
[1741229497005,0.033,148.92,148.84,18.933972]
[1741229497211,0.033,148.92,148.84,455.59518286]
[1741229497392,0.033,148.92,148.84,412.233972]
[1741229497598,0.033,148.92,148.84,100.233972]
[1741229498808,0.033,148.92,148.84,81.44216157]
[1741229499206,0.033,148.92,148.84,81.3]
[1741229500208,0.033,148.92,148.82,0.14216157]
[1741229500408,80.8,148.91,148.82,81.44216157]
[1741229500591,80.8,148.91,148.82,393.44216157]
[1741229501204,0.033,148.92,148.86,18.933972]
[1741229501407,0.033,148.92,148.86,100.233972]
[1741229501903,0.033,148.92,148.86,81.44216157]
[1741229502315,0.033,148.92,148.86,81.3]
[1741229502618,80.833,148.92,148.8,130.93986888]
[1741229502916,80.833,148.92,148.8,87.63696157]
[1741229503122,80.833,148.92,148.8,87.4948]
[1741229503417,80.833,148.92,148.81,0.14216157]
[1741229503611,6.2685,148.9,148.81,0.14216157]
[1741229503911,6.2685,148.9,148.8,81.3]
[1741229504119,6.2685,148.9,148.81,0.14216157]
[1741229504417,1.5647,148.91,148.84,18.64964886]
[1741229504589,1.5647,148.91,148.84,99.94964886]
[1741229504789,0.033,148.92,148.9,0.14216157]
[1741229505401,0.033,148.92,148.91,64.07313669]
[1741229505615,0.033,148.92,148.91,279.87313669]
[1741229505814,0.033,148.92,148.91,278.46336402]
[1741229506197,0.033,148.92,148.91,285.17876402]
[1741229506914,0.033,148.92,148.91,278.46336402]
[1741229507420,0.033,148.92,148.91,285.17876402]
[1741229507620,0.033,148.92,148.91,597.17876402]
[1741229508727,0.033,148.92,148.91,547.01829514]
[1741229508900,0.033,148.92,148.91,590.46336402]
[1741229509316,0.033,148.92,148.91,597.17876402]
[1741229509520,0.033,148.92,148.91,412.09181043]
[1741229509728,0.033,148.92,148.91,81.3]
[1741229509918,0.033,148.92,148.91,124.74506888]
[1741229510237,0.033,148.92,148.91,286.58834666]
[1741229510432,0.033,148.92,148.91,278.46336402]
[1741229510597,0.033,148.92,148.91,235.01829514]
[1741229510800,0.033,148.92,148.91,234.59181043]
[1741229511006,1.5997,149.03,148.95,0.42648471]
[1741229511208,6.269,149.06,148.98,0.14216157]
[1741229511499,7.9660467,149.1,149.02,0.14216157]
[1741229511930,7.9660467,149.1,149.01,0.14216157]
[1741229512219,7.9660467,149.1,149.01,18.933972]
[1741229512629,7.9660467,149.1,149.03,0.14216157]
[1741229513197,7.9660467,149.1,149.02,0.14216157]
[1741229513409,7.9660467,149.1,149.0,81.3]
[1741229513712,80.8,149.09,149.0,81.3]
[1741229514622,21.6434,149.05,148.94,6.5747]
[1741229514922,80.8,149.04,148.92,124.74506888]
[1741229515130,80.8,149.03,148.92,81.3]
[1741229515306,80.8,149.03,148.93,0.14216157]
[1741229515624,80.8,149.03,148.92,124.74506888]
[1741229515804,6.5493,149.02,148.92,81.3]
[1741229516112,1.6434,149.05,148.98,0.14216157]
[1741229516824,6.5493,149.06,148.98,0.14216157]
[1741229517123,1.5121,149.09,149.0,0.14216157]
[1741229517918,1.5121,149.09,149.02,0.14216157]
[1741229519010,1.6970467,149.1,149.03,18.64964886]
[1741229519215,1.6970467,149.1,149.04,43.72939202]
[1741229519420,1.6970467,149.1,149.06,0.28432314]
[1741229519706,1.6970467,149.1,149.08,312.0]
[1741229520106,1.6970467,149.1,149.04,81.3]
[1741229520509,1.6970467,149.1,149.02,81.3]
[1741229520716,1.5156,149.09,148.99,221.8864]
[1741229520927,1.5156,149.09,149.0,0.14216157]
[1741229521625,1.5156,149.09,149.0,43.58723045]
[1741229521807,1.5156,149.09,149.0,18.933972]
[1741229522513,1.7300467,149.1,149.01,43.44506888]
[1741229522929,1.7300467,149.1,149.0,20.34272964]
[1741229522930,1.7300467,149.1,149.02,62.66336402]
[1741229523128,1.7300467,149.1,149.05,0.14216157]
[1741229523329,21.7300467,149.1,149.01,81.3]
[1741229523510,20.0,149.09,149.01,81.3]
[1741229523853,7.9262,149.07,148.96,215.8]
[1741229524341,7.9262,149.07,148.92,7.8692]
[1741229524342,80.8,149.06,148.92,267.11426888]
[1741229524532,80.8,149.05,148.92,267.11426888]
[1741229524846,80.8,149.04,148.93,0.14216157]
[1741229525140,80.8,149.03,148.93,81.3]
[1741229525338,80.8,149.02,148.91,81.3]
[1741229525908,80.8,149.01,148.91,81.3]
[1741229526309,80.8,149.01,148.91,393.3]
[1741229526938,80.8,149.0,148.88,81.3]
[1741229527140,6.1168,148.97,148.88,81.3]
[1741229527339,86.9168,148.97,148.86,215.83]
[1741229527935,86.9168,148.97,148.86,259.27506888]
[1741229528515,80.8,149.01,148.92,43.44506888]
[1741229528716,6.1168,149.02,148.93,43.44506888]
[1741229528939,6.1168,149.02,148.94,43.44506888]
[1741229529223,6.1168,149.02,148.93,43.58723045]
[1741229529430,1.6414,149.03,148.94,62.23687931]
[1741229530032,1.6414,149.03,148.97,0.14216157]
[1741229530341,6.17,149.07,148.97,0.14216157]
[1741229530524,1.5007,149.09,148.97,279.5880349]
[1741229530727,1.5007,149.09,148.97,278.17904088]
[1741229531235,1.5007,149.09,148.97,234.733972]
[1741229531442,1.5007,149.09,148.97,278.17904088]
[1741229531953,1.5007,149.09,148.97,234.733972]
[1741229532251,1.5007,149.09,148.97,215.94216157]
[1741229532649,20.0,149.08,148.97,215.94216157]
[1741229532944,1.5007,149.09,148.98,18.79181043]
[1741229532945,82.3007,149.09,148.98,18.79181043]
[1741229533148,82.3007,149.09,148.97,215.8]
[1741229533351,82.3007,149.09,148.98,0.14216157]
[1741229533550,82.3007,149.09,148.98,312.14216157]
[1741229533743,82.3007,149.09,148.98,0.14216157]
[1741229534061,0.14216157,149.07,148.97,81.3]
[1741229534354,80.8,149.08,148.97,259.24506888]
[1741229534646,80.8,149.08,148.98,43.58723045]
[1741229534849,80.8,149.08,148.98,0.14216157]
[1741229535217,80.8,149.07,148.97,81.3]
[1741229536027,3.5007,149.09,148.97,81.3]
[1741229536028,80.8,149.06,148.97,81.3]
[1741229536234,81.08432314,149.05,148.93,81.3]
[1741229536436,80.8,149.04,148.93,81.3]
[1741229536639,0.14216157,148.98,148.91,0.03]
[1741229536820,80.8,148.97,148.91,0.03]
[1741229537024,80.8,148.97,148.86,0.03]
[1741229537235,80.8,148.96,148.86,0.03]
[1741229537647,80.8,148.96,148.87,0.14216157]
[1741229538039,80.8,148.96,148.86,124.77506888]
[1741229538246,80.8,148.96,148.86,81.33]
[1741229538442,82.3354,148.99,148.89,0.14216157]
[1741229538949,20.0,148.96,148.88,81.3]
[1741229539445,80.8,148.98,148.89,0.14216157]
[1741229539625,80.8,148.98,148.89,312.14216157]
[1741229539830,80.8,148.98,148.89,312.0]
[1741229540150,80.8,148.97,148.86,0.03]
[1741229540338,80.8,148.96,148.86,0.03]
[1741229540551,0.28432314,148.94,148.86,0.03]
[1741229540751,80.8,148.95,148.86,0.03]
[1741229541852,80.8,148.94,148.86,0.03]
[1741229543152,1.5354,148.99,148.91,43.44506888]
[1741229543351,1.5354,148.99,148.9,124.88723045]
[1741229543725,1.5354,148.99,148.9,81.44216157]
[1741229544126,1.5354,148.99,148.9,124.88723045]
[1741229544335,1.5354,148.99,148.9,81.44216157]
[1741229544558,1.5354,148.99,148.9,81.3]
[1741229544864,80.8,149.02,148.86,26.39964886]
[1741229544865,80.8,148.98,148.86,81.33]
[1741229545029,80.8,148.98,148.87,18.64964886]
[1741229545230,80.8,148.98,148.88,0.14216157]
[1741229545726,0.28432314,148.97,148.86,0.03]
[1741229545963,80.8,148.97,148.86,0.03]
[1741229546394,0.28432314,148.96,148.86,0.03]
[1741229547025,80.8,148.97,148.86,0.03]
[1741229547844,1.6175,148.96,148.86,0.03]
[1741229548050,81.08432314,148.95,148.86,0.03]
[1741229548255,80.8,148.94,148.86,0.03]
[1741229549463,6.4254,148.92,148.86,0.03]
[1741229550187,80.8,148.91,148.86,0.03]
[1741229551077,6.4254,148.92,148.86,0.03]
[1741229551475,80.8,148.95,148.86,0.03]
[1741229551682,80.8,148.95,148.86,124.91723045]
[1741229551877,80.8,148.95,148.86,81.47216157]
[1741229552268,80.8,148.95,148.86,81.33]
[1741229553377,1.6175,148.96,148.89,43.44506888]
[1741229553569,80.8,148.99,148.89,124.74506888]
[1741229553769,80.3,148.98,148.9,0.14216157]
[1741229554082,1.5646,149.02,148.92,43.58723045]
[1741229554255,80.3,149.04,148.94,0.14216157]
[1741229554459,80.3,149.04,148.94,43.58723045]
[1741229554774,80.3,149.04,148.94,108.12739448]
[1741229555076,80.3,149.04,148.94,81.44216157]
[1741229555262,80.3,149.04,148.94,81.3]
[1741229555576,20.0,149.0,148.91,89.1]
[1741229555752,80.3,149.03,148.91,89.1]
[1741229556764,20.0,149.0,148.91,89.1]
[1741229556967,80.3,148.99,148.89,81.3]
[1741229557262,80.3,148.98,148.87,81.3]
[1741229557463,19.07613357,148.96,148.87,81.3]
[1741229557659,6.2738,148.95,148.87,81.3]
[1741229557860,80.3,148.94,148.86,0.03]
[1741229558172,80.3,148.93,148.86,0.03]
[1741229558368,80.58432314,148.92,148.86,0.03]
[1741229558559,80.3,148.91,148.86,0.03]